fUST/lending_fUST_20251225
["ID","MTS","AMOUNT","RATE_DAILY","PERIOD"]
[399665529,1766592205145,177.76,0.000154,120]
[399665601,1766592632312,-345.5959988,5.487e-05,2]
[399665608,1766592632375,-447.81245892,5.487e-05,2]
[399665610,1766592632387,-1611.88839152,5.487e-05,2]
[399665612,1766592632400,-2594.70315076,5.487e-05,2]
[399665614,1766592632410,-136.24893344,5.542e-05,2]
[399665616,1766592632422,-4863.75106656,5.542e-05,2]
[399665618,1766592632432,-501.0,5.598e-05,2]
[399665620,1766592632442,-350.0,5.654e-05,2]
[399665621,1766592632453,-187.17702424,5.741e-05,2]
[399665623,1766592632463,-5899.0037388,6.141e-05,2]
[399665625,1766592632473,-150.0,6.427e-05,2]
[399665627,1766592632484,-150.0,7.012e-05,2]
[399665629,1766592632494,-150.0,7.596e-05,2]
[399665631,1766592632505,-220.8688886,7.741e-05,2]
[399665632,1766592632515,-326.67791889,7.825e-05,2]
[399665634,1766592632525,-500.0,7.974e-05,2]
[399665636,1766592632535,-500.0,7.974e-05,2]
[399665638,1766592632545,-500.0,7.974e-05,2]
[399665640,1766592632555,-500.0,7.974e-05,2]
[399665642,1766592632564,-500.0,7.974e-05,2]
[399665644,1766592632574,-500.0,7.974e-05,2]
[399665646,1766592632584,-500.0,7.974e-05,2]
[399665648,1766592632595,-500.0,7.974e-05,2]
[399665650,1766592632606,-500.0,7.974e-05,2]
[399665652,1766592632616,-500.0,7.974e-05,2]
[399665664,1766592632890,-500.0,7.974e-05,2]
[399665665,1766592632902,-308.90749234,7.974e-05,2]
[399665666,1766592632912,-428.40244004,7.974e-05,2]
[399665667,1766592632922,-500.0,7.974e-05,2]
[399665668,1766592632934,-500.0,7.974e-05,2]
[399665669,1766592632944,-500.0,7.974e-05,2]
[399665670,1766592632955,-500.0,7.974e-05,2]
[399665671,1766592632964,-500.0,7.974e-05,2]
[399665672,1766592632974,-271.61667904,7.974e-05,2]
[399665673,1766592632985,-500.0,7.974e-05,2]
[399665674,1766592632995,-500.0,7.974e-05,2]
[399665675,1766592633005,-500.0,7.974e-05,2]
[399665676,1766592633016,-500.0,7.974e-05,2]
[399665677,1766592633027,-500.0,7.974e-05,2]
[399665678,1766592633037,-280.16743109,7.974e-05,2]
[399665679,1766592633047,-1204.77659269,7.974e-05,2]
[399665680,1766592633057,-1204.77659269,7.974e-05,2]
[399665681,1766592633067,-23116.86307099,7.975e-05,2]
[399665726,1766592638424,-1204.77659269,7.974e-05,2]
[399665728,1766592638434,-1204.77659269,7.974e-05,2]
[399665730,1766592638445,-1204.77659269,7.974e-05,2]
[399665732,1766592638455,-1204.77659269,7.974e-05,2]
[399665734,1766592638464,-1204.77659269,7.974e-05,2]
[399665736,1766592638475,-1204.77659269,7.974e-05,2]
[399665738,1766592638484,-1204.77659269,7.974e-05,2]
[399665740,1766592638494,-150.0,8.18e-05,2]
[399665743,1766592638503,-301.97716786,8.219e-05,2]
[399665745,1766592638513,-1041.66666667,8.515e-05,2]
[399665747,1766592638523,-150.0,8.658e-05,2]
[399665749,1766592638533,-600.0,8.683e-05,2]
[399665752,1766592638543,-150.0,9.235e-05,2]
[399665754,1766592638553,-720.0,9.551e-05,2]
[399665756,1766592638563,-254.56075296,9.741e-05,2]
[399665758,1766592638573,-150.0,9.812e-05,2]
[399665760,1766592638583,-150.0,0.00010389,2]
[399665762,1766592638594,-864.0,0.00010506,2]
[399665764,1766592638605,-965.2770871,0.00010959,2]
[399665766,1766592638615,-500.0,0.00010959,2]
[399665768,1766592638625,-313.59000809,0.00010959,2]
[399665770,1766592638635,-500.0,0.00010959,2]
[399665772,1766592638645,-1000.0,0.00011557,2]
[399665774,1766592638655,-288.25261732,0.00011741,2]
[399665775,1766592638666,-326.67791889,0.00011785,2]
[399665776,1766592638675,-51395.49111143,0.00012404,2]
[399665777,1766592638687,-2521.307953,0.00012404,2]
[399665778,1766592638711,-4389.26336918,0.00012404,2]
[399665928,1766592640618,-440.45,0.00012404,2]
[399665952,1766592646458,-892.8,0.0001228,2]
[399665953,1766592646519,-3245.60112131,0.0001228,2]
[399665954,1766592646531,-492.25378609,0.0001228,2]
[399665955,1766592646541,-9784.86909719,0.00012404,2]
[399665956,1766592750851,200.0,0.00013663,120]
[399665988,1766593350878,200.0,0.00014776,120]
[399666037,1766593832484,-216.0,6.009e-05,2]
[399666039,1766593832495,-5000.0,6.01e-05,2]
[399666041,1766593832507,-506.0,6.01e-05,2]
[399666043,1766593832517,-190.74767639,6.071e-05,2]
[399666045,1766593832527,-176.82,6.414e-05,2]
[399666047,1766593832538,-353.63,6.997e-05,2]
[399666049,1766593832551,-530.45,7.58e-05,2]
[399666051,1766593832563,-189.3283784,7.961e-05,2]
[399666053,1766593832573,-225.08225814,8.071e-05,2]
[399666055,1766593832583,-707.26,8.163e-05,2]
[399666057,1766593832594,-300.0,8.551e-05,2]
[399666059,1766593832603,-257.31027848,8.551e-05,2]
[399666061,1766593832615,-42.68972152,8.551e-05,2]
[399666063,1766593832624,-300.0,8.551e-05,2]
[399666065,1766593832633,-388.69353178,8.552e-05,2]
[399666067,1766593832643,-500.0,8.552e-05,2]
[399666069,1766593832652,-419.02508836,8.552e-05,2]
[399666071,1766593832664,-80.97491164,8.552e-05,2]
[399666073,1766593832674,-176.80762869,8.552e-05,2]
[399666077,1766593832706,-323.19237131,8.552e-05,2]
[399666079,1766593832715,-83.83833325,8.552e-05,2]
[399666081,1766593832726,-416.16166675,8.552e-05,2]
[399666083,1766593832736,-181.31827308,8.552e-05,2]
[399666085,1766593832746,-402.52006017,8.552e-05,2]
[399666291,1766593838803,-19254.58375504,8.551e-05,2]
[399666297,1766593838891,-97.47993983,8.552e-05,2]
[399666299,1766593838903,-500.0,8.552e-05,2]
[399666301,1766593838913,-500.0,8.552e-05,2]
[399666303,1766593838923,-500.0,8.552e-05,2]
[399666305,1766593838933,-500.0,8.552e-05,2]
[399666307,1766593838943,-635.22583899,8.552e-05,2]
[399666310,1766593838954,-500.0,8.552e-05,2]
[399666312,1766593838965,-1200.0,8.552e-05,2]
[399666314,1766593838975,-884.08,8.65e-05,2]
[399666316,1766593838986,-1060.89,9.226e-05,2]
[399666318,1766593838995,-1237.71,9.803e-05,2]
[399666320,1766593839005,-163.62,0.0001,2]
[399666322,1766593839015,-151.0,0.0001,2]
[399666324,1766593839025,-151.0,0.0001,2]
[399666325,1766593839035,-151.0,0.0001,2]
[399666327,1766593839045,-151.0,0.0001,2]
[399666329,1766593839055,-151.0,0.0001,2]
[399666332,1766593839065,-151.0,0.0001,2]
[399666333,1766593839075,-277.40798429,0.0001,2]
[399666336,1766593839085,-259.41683988,0.00010071,2]
[399666338,1766593839096,-1041.66666667,0.00010152,2]
[399666340,1766593839108,-1414.52,0.0001038,2]
[399666342,1766593839119,-4109.0725147,0.00010782,2]
[399666344,1766593839129,-1591.34,0.00010956,2]
[399666346,1766593839139,-500.0,0.00010958,2]
[399666348,1766593839150,-401.04,0.00010958,2]
[399666350,1766593839160,-189.3283784,0.00011113,2]
[399666352,1766593839170,-1768.15,0.00011533,2]
[399666354,1766593839180,-159.25725166,0.00011827,2]
[399666356,1766593839190,-4109.0725147,0.00011918,2]
[399666358,1766593839200,-230.4032939,0.00011979,2]
[399666360,1766593839210,-293.75142163,0.00012071,2]
[399666362,1766593839220,-2182.18154429,0.00012102,2]
[399666364,1766593839230,-500.0,0.00012296,2]
[399666366,1766593839240,-500.0,0.00012296,2]
[399666368,1766593839250,-563.23593243,0.00012296,2]
[399666370,1766593839260,-500.0,0.00012296,2]
[399666372,1766593839270,-500.0,0.00012296,2]
[399666374,1766593839280,-500.0,0.00012296,2]
[399666376,1766593839290,-211.3840175,0.00012296,2]
[399666378,1766593839300,-1169.25594917,0.00012296,2]
[399666380,1766593839310,-419.51300566,0.00012296,2]
[399666382,1766593839320,-1169.25594917,0.00012296,2]
[399666384,1766593839330,-20974.05451632,0.00012304,2]
[399666386,1766593839342,-27510.25761913,0.00012304,2]
[399666389,1766593839354,-667.65594726,0.00012304,2]
[399666391,1766593839365,-183.77,0.00012329,2]
[399666393,1766593839375,-153.14,0.00012329,2]
[399666395,1766593839384,-765.74,0.00012329,2]
[399666397,1766593839394,-600.0,0.00012651,2]
[399666399,1766593839404,-11363.61343056,0.000129,2]
[399666401,1766593839413,-6032.31319475,0.000129,2]
[399666403,1766593839426,-4082.11870766,0.000129,2]
[399666587,1766593846947,-860.28587217,0.00010276,2]
[399666588,1766593847005,-1514.01398207,0.00010276,2]
[399666594,1766594010940,200.0,0.00014957,120]
[399666763,1766595033722,-5000.0,5.988e-05,2]
[399666764,1766595033733,-506.0,5.988e-05,2]
[399666765,1766595033743,-194.82247691,6.079e-05,2]
[399666766,1766595033753,-300.0,6.107e-05,2]
[399666767,1766595033763,-300.0,6.107e-05,2]
[399666768,1766595033773,-300.0,6.107e-05,2]
[399666769,1766595033782,-300.0,6.107e-05,2]
[399666770,1766595033792,-300.0,6.107e-05,2]
[399666771,1766595033802,-300.0,6.107e-05,2]
[399666772,1766595033812,-300.0,6.107e-05,2]
[399666773,1766595033821,-300.0,6.107e-05,2]
[399666774,1766595033831,-300.0,6.107e-05,2]
[399666775,1766595033841,-300.0,6.107e-05,2]
[399666776,1766595033851,-300.0,6.107e-05,2]
[399666777,1766595033861,-300.0,6.107e-05,2]
[399666778,1766595033873,-300.0,6.107e-05,2]
[399666779,1766595033883,-300.0,6.107e-05,2]
[399666780,1766595033893,-300.0,6.107e-05,2]
[399666781,1766595033903,-50000.0,6.233e-05,2]
[399666782,1766595033913,-150.0,6.233e-05,2]
[399666783,1766595033923,-249.42,6.716e-05,2]
[399666784,1766595033933,-658.89862228,7.222e-05,2]
[399666785,1766595033942,-374.13,7.275e-05,2]
[399666786,1766595033952,-498.85,7.835e-05,2]
[399666787,1766595033962,-229.89052275,8.079e-05,2]
[399666788,1766595033972,-658.89862228,8.079e-05,2]
[399666789,1766595033982,-623.56,8.395e-05,2]
[399666790,1766595033991,-300.0,8.533e-05,2]
[399666791,1766595034001,-1165.11246625,8.533e-05,2]
[399666792,1766595034011,-1165.11246625,8.533e-05,2]
[399666793,1766595034021,-207.43498459,8.533e-05,2]
[399666794,1766595034031,-1165.11246625,8.533e-05,2]
[399666795,1766595034040,-1165.11246625,8.533e-05,2]
[399666796,1766595034050,-1165.11246625,8.533e-05,2]
[399666797,1766595034063,-1165.11246625,8.533e-05,2]
[399666798,1766595034074,-1165.11246625,8.533e-05,2]
[399666799,1766595034084,-1165.11246625,8.533e-05,2]
[399666800,1766595034094,-1165.11246625,8.533e-05,2]
[399666801,1766595034105,-1023.39779363,8.536e-05,2]
[399666802,1766595034114,-151.0,8.536e-05,2]
[399666803,1766595034124,-500.0,8.538e-05,2]
[399666804,1766595034133,-1041.66666667,8.539e-05,2]
[399666805,1766595034146,-600.0,8.704e-05,2]
[399666806,1766595034156,-658.89862228,8.935e-05,2]
[399666807,1766595034166,-748.27,8.954e-05,2]
[399666808,1766595034176,-30704.9387472,9.259e-05,2]
[399666809,1766595034186,-420.0,9.386e-05,2]
[399666810,1766595034200,-872.98,9.514e-05,2]
[399666811,1766595034220,-720.0,9.574e-05,2]
[399666812,1766595034231,-658.89862228,9.792e-05,2]
[399666813,1766595034241,-1023.39779362,9.827e-05,2]
[399666814,1766595034251,-997.69,0.00010073,2]
[399666815,1766595034266,-264.9585686,0.00010079,2]
[399666816,1766595034280,-233.88,0.000101,2]
[399666817,1766595034290,-545.74,0.00010168,2]
[399666818,1766595034300,-587.0,0.00010325,2]
[399666819,1766595034310,-864.0,0.00010532,2]
[399666820,1766595034319,-1122.4,0.00010633,2]
[399666821,1766595034329,-659.5575209,0.00010648,2]
[399666822,1766595034339,-999.0,0.00010959,2]
[399666823,1766595034349,-500.0,0.00010959,2]
[399666824,1766595034359,-603.04255165,0.00010959,2]
[399666825,1766595034369,-1023.39779362,0.00011017,2]
[399666826,1766595034379,-1247.11,0.00011193,2]
[399666827,1766595034389,-420.0,0.00011358,2]
[399666828,1766595034400,-1000.0,0.00011585,2]
[399666829,1766595034409,-153.0,0.0001161,2]
[399666830,1766595034420,-153.0,0.0001161,2]
[399666831,1766595034429,-153.78674401,0.0001161,2]
[399666832,1766595034439,-300.02661444,0.00012079,2]
[399666833,1766595034450,-1023.39779362,0.00012308,2]
[399666834,1766595034460,-2476.28697506,0.00012612,2]
[399666835,1766595034470,-1000.0,0.00012743,2]
[399666836,1766595034480,-244.0,0.00012743,2]
[399666837,1766595034490,-449.58403507,0.00012829,2]
[399666838,1766595034500,-500.0,0.00012829,2]
[399666839,1766595034510,-500.0,0.00012829,2]
[399666840,1766595034520,-514.84070869,0.00012829,2]
[399666841,1766595034529,-500.0,0.00012829,2]
[399666842,1766595034539,-500.0,0.00012829,2]
[399666843,1766595034549,-500.0,0.00012829,2]
[399666844,1766595034559,-500.0,0.00012829,2]
[399666845,1766595034569,-500.0,0.00012829,2]
[399666846,1766595034579,-500.0,0.00012829,2]
[399666847,1766595034589,-500.0,0.00012829,2]
[399666848,1766595034599,-500.0,0.00012829,2]
[399666849,1766595034609,-500.0,0.00012829,2]
[399666850,1766595034619,-500.0,0.00012829,2]
[399666851,1766595034629,-500.0,0.00012829,2]
[399666852,1766595034639,-500.0,0.00012829,2]
[399666853,1766595034649,-500.0,0.00012829,2]
[399666854,1766595034659,-500.0,0.00012829,2]
[399666855,1766595034669,-500.0,0.00012829,2]
[399666856,1766595034679,-500.0,0.00012829,2]
[399666857,1766595034689,-329.95937148,0.00012829,2]
[399666858,1766595034699,-500.0,0.00012829,2]
[399666859,1766595034710,-500.0,0.00012829,2]
[399666860,1766595034719,-500.0,0.00012829,2]
[399666861,1766595034729,-239.26972909,0.00012829,2]
[399666862,1766595034739,-9256.22356864,0.000129,2]
[399666863,1766595034749,-9256.2235686,0.000129,2]
[399666864,1766595034758,-1003.36208938,0.000129,2]
[399666865,1766595034768,-151.0,0.000129,2]
[399666866,1766595034779,-151.0,0.000129,2]
[399666867,1766595034789,-151.0,0.000129,2]
[399666868,1766595034799,-151.0,0.000129,2]
[399666869,1766595034809,-151.0,0.000129,2]
[399666870,1766595034819,-151.0,0.000129,2]
[399666871,1766595034829,-151.0,0.000129,2]
[399666872,1766595034839,-151.0,0.000129,2]
[399666873,1766595034850,-151.0,0.000129,2]
[399666874,1766595034860,-151.0,0.000129,2]
[399666875,1766595034870,-151.0,0.000129,2]
[399666876,1766595034879,-642.65626358,0.00013273,2]
[399666877,1766595034890,-500.0,0.00013273,2]
[399666878,1766595034899,-500.0,0.00013273,2]
[399666879,1766595034906,-500.0,0.00013273,2]
[399666880,1766595034914,-500.0,0.00013273,2]
[399666881,1766595034921,-500.0,0.00013273,2]
[399666882,1766595034930,-500.0,0.00013273,2]
[399666883,1766595034937,-500.0,0.00013273,2]
[399666884,1766595034944,-503.39278923,0.00013273,2]
[399666885,1766595034951,-500.0,0.00013273,2]
[399666886,1766595034958,-500.0,0.00013273,2]
[399666887,1766595034966,-500.0,0.00013273,2]
[399666888,1766595034972,-500.0,0.00013273,2]
[399666889,1766595034982,-500.0,0.00013273,2]
[399666890,1766595034989,-500.0,0.00013273,2]
[399666891,1766595034997,-500.39740459,0.00013273,2]
[399666892,1766595035004,-158.26068249,0.00013273,2]
[399666893,1766595035012,-500.0,0.00013273,2]
[399666894,1766595035021,-500.0,0.00013273,2]
[399666895,1766595035029,-500.0,0.00013273,2]
[399666896,1766595035037,-500.0,0.00013273,2]
[399666897,1766595035045,-500.0,0.00013273,2]
[399666898,1766595035055,-500.0,0.00013273,2]
[399666899,1766595035065,-500.0,0.00013273,2]
[399666900,1766595035075,-500.0,0.00013273,2]
[399666901,1766595035084,-276.14014074,0.00013273,2]
[399666902,1766595035092,-500.0,0.00013273,2]
[399666903,1766595035102,-500.0,0.00013273,2]
[399666904,1766595035114,-500.0,0.00013273,2]
[399666905,1766595035124,-500.0,0.00013273,2]
[399666906,1766595035133,-500.0,0.00013273,2]
[399666907,1766595035143,-500.0,0.00013273,2]
[399666908,1766595035152,-500.98635195,0.00013273,2]
[399666909,1766595035162,-352.05444832,0.00013273,2]
[399666910,1766595035171,-500.0,0.00013273,2]
[399666911,1766595035181,-500.0,0.00013273,2]
[399666912,1766595035191,-500.0,0.00013273,2]
[399666913,1766595035201,-310.03517576,0.00013273,2]
[399666914,1766595035210,-367.22195546,0.00013273,2]
[399666915,1766595035220,-419.68223481,0.00013273,2]
[399666916,1766595035229,-655.0977384,0.00013273,2]
[399666917,1766595035239,-212.00339881,0.00013273,2]
[399666918,1766595035250,-381.60611786,0.00013273,2]
[399666919,1766595035259,-215.23871818,0.00013273,2]
[399666920,1766595035270,-245.98710649,0.00013273,2]
[399666921,1766595035280,-678.41087619,0.00013273,2]
[399666922,1766595035290,-533.88981491,0.00013377,2]
[399666923,1766595035300,-313.12905894,0.00013415,2]
[399666924,1766595035310,-165.47363979,0.00013428,2]
[399666925,1766595035320,-1023.39779362,0.00013598,2]
[399666926,1766595035330,-1058.95697706,0.00013601,2]
[399666927,1766595035338,-246.73657879,0.00013601,2]
[399666928,1766595035347,-300.0,0.00013673,2]
[399666929,1766595035356,-63349.18418594,0.00013689,2]
[399666930,1766595035365,-6852.04822107,0.00013691,2]
[399666931,1766595035375,-171.6842268,0.00013698,2]
[399666932,1766595035384,-500.0,0.00013698,2]
[399666933,1766595035393,-520.18644978,0.00013698,2]
[399666934,1766595035403,-500.0,0.00013698,2]
[399666935,1766595035412,-500.0,0.00013698,2]
[399666936,1766595035421,-500.0,0.00013698,2]
[399666937,1766595035431,-500.0,0.00013698,2]
[399666938,1766595035441,-500.0,0.00013698,2]
[399666939,1766595035451,-500.0,0.00013698,2]
[399666940,1766595035460,-500.0,0.00013698,2]
[399666941,1766595035470,-500.0,0.00013698,2]
[399666942,1766595035479,-500.0,0.00013698,2]
[399666943,1766595035489,-500.0,0.00013698,2]
[399666944,1766595035499,-500.0,0.00013698,2]
[399666945,1766595035508,-478.75,0.00013698,2]
[399666946,1766595035518,-500.0,0.00013698,2]
[399666947,1766595035527,-500.0,0.00013698,2]
[399666948,1766595035537,-500.0,0.00013698,2]
[399666949,1766595035547,-500.0,0.00013698,2]
[399666950,1766595035556,-500.0,0.00013698,2]
[399666951,1766595035566,-500.0,0.00013698,2]
[399666952,1766595035576,-500.0,0.00013698,2]
[399666953,1766595035585,-505.06648523,0.00013698,2]
[399666954,1766595035595,-530.07316943,0.00013698,2]
[399666955,1766595035605,-524.17649869,0.00013698,2]
[399666956,1766595035614,-5727.81,0.00013698,2]
[399666957,1766595035625,-5727.81,0.00013698,2]
[399666958,1766595035635,-5727.81,0.00013698,2]
[399666959,1766595035645,-5727.81,0.00013698,2]
[399666960,1766595035654,-5727.81,0.00013698,2]
[399666961,1766595035664,-5727.81,0.00013698,2]
[399666962,1766595035674,-5727.81,0.00013698,2]
[399666963,1766595035683,-5727.81,0.00013698,2]
[399666964,1766595035693,-5513.9783342,0.00013698,2]
[399666965,1766595035708,-213.8316658,0.00013698,2]
[399666966,1766595035718,-759.1683342,0.00013698,2]
[399666991,1766595038644,-1005.01408681,5.928e-05,2]
[399666997,1766595038698,-3994.98591319,5.928e-05,2]
[399666999,1766595038709,-1165.11246625,8.533e-05,2]
[399667001,1766595038719,-821.05673845,8.533e-05,2]
[399667003,1766595038731,-344.0557278,8.533e-05,2]
[399667005,1766595038742,-1165.11246625,8.533e-05,2]
[399667007,1766595038752,-1165.11246625,8.533e-05,2]
[399667009,1766595038761,-1165.11246625,8.533e-05,2]
[399667011,1766595038771,-1165.11246625,8.533e-05,2]
[399667013,1766595038781,-1165.11246625,8.533e-05,2]
[399667015,1766595038792,-1165.11246625,8.533e-05,2]
[399667017,1766595038801,-1165.11246625,8.533e-05,2]
[399667019,1766595038811,-1165.11246625,8.533e-05,2]
[399667021,1766595038820,-1165.11246625,8.533e-05,2]
[399667023,1766595038830,-1165.11246625,8.533e-05,2]
[399667025,1766595038839,-1165.11246625,8.533e-05,2]
[399667026,1766595038848,-151.0,0.000129,2]
[399667028,1766595038859,-151.0,0.000129,2]
[399667030,1766595038868,-151.0,0.000129,2]
[399667032,1766595038879,-202.37406777,0.000129,2]
[399667034,1766595038889,-500.0,0.00013273,2]
[399667036,1766595038898,-4968.6416658,0.00013698,2]
[399667038,1766595038907,-5727.81,0.00013698,2]
[399667042,1766595038931,-5727.81,0.00013698,2]
[399667044,1766595038943,-5727.81,0.00013698,2]
[399667046,1766595038954,-5727.81,0.00013698,2]
[399667048,1766595038964,-191.30741841,0.00013698,2]
[399667209,1766595040815,-1135.23247575,0.00013698,2]
[399667464,1766595043919,-2779.06493124,0.00013698,2]
[399667465,1766595043932,-411.99704299,0.00013698,2]
[399667466,1766595043945,-1210.20813161,0.00013698,2]
[399667467,1766595043956,-2853.79186845,0.00013698,2]
[399667468,1766595043968,-2874.01813155,0.00013698,2]
[399667469,1766595043978,-4253.63760789,0.00013698,2]
[399667470,1766595043991,-1474.17239211,0.00013698,2]
[399667471,1766595044000,-1439.30491855,0.00013698,2]
[399667510,1766595046772,-4288.50508145,0.00013698,2]
[399667511,1766595046783,-5727.81,0.00013698,2]
[399667512,1766595046794,-5727.81,0.00013698,2]
[399667513,1766595046805,-5727.81,0.00013698,2]
[399667514,1766595046815,-5727.81,0.00013698,2]
[399667515,1766595046826,-5382.22369869,0.00013698,2]
[399667871,1766596231713,-2600.0,5.841e-05,2]
[399667873,1766596231726,-2400.0,5.841e-05,2]
[399667875,1766596231736,-350.0,5.841e-05,2]
[399667878,1766596231757,-154.0,5.841e-05,2]
[399667880,1766596231768,-184.07111909,5.901e-05,2]
[399667882,1766596231778,-138.44888091,6.131e-05,2]
[399667885,1766596231791,-11.55111909,6.131e-05,2]
[399667887,1766596231802,-300.0,6.222e-05,2]
[399667889,1766596231813,-197.20747306,6.222e-05,2]
[399667891,1766596231825,-102.79252694,6.222e-05,2]
[399667892,1766596231835,-50000.0,6.223e-05,2]
[399667893,1766596231846,-500.0,6.223e-05,2]
[399667894,1766596231856,-500.0,6.223e-05,2]
[399667895,1766596231871,-596.60610422,6.223e-05,2]
[399667896,1766596231883,-574.71774709,6.223e-05,2]
[399667897,1766596231894,-500.0,6.223e-05,2]
[399667898,1766596231906,-184.47331872,6.223e-05,2]
[399667899,1766596231916,-500.0,6.223e-05,2]
[399667901,1766596231927,-500.0,6.223e-05,2]
[399667903,1766596231938,-480.73775025,6.223e-05,2]
[399667905,1766596231949,-500.0,6.223e-05,2]
[399667907,1766596231960,-500.0,6.223e-05,2]
[399667909,1766596231972,-421.74497478,6.223e-05,2]
[399667911,1766596231984,-500.0,6.223e-05,2]
[399667913,1766596231995,-500.0,6.223e-05,2]
[399667916,1766596232006,-500.0,6.223e-05,2]
[399667918,1766596232017,-103.20172489,6.223e-05,2]
[399667988,1766596237856,-396.79827511,6.223e-05,2]
[399667990,1766596237867,-500.0,6.223e-05,2]
[399667992,1766596237878,-500.0,6.223e-05,2]
[399667994,1766596237889,-500.0,6.223e-05,2]
[399667996,1766596237899,-500.0,6.223e-05,2]
[399667998,1766596237910,-500.0,6.223e-05,2]
[399668000,1766596237920,-500.0,6.223e-05,2]
[399668002,1766596237930,-500.0,6.223e-05,2]
[399668005,1766596237941,-500.0,6.223e-05,2]
[399668007,1766596237951,-293.84658963,6.223e-05,2]
[399668009,1766596237962,-500.0,6.223e-05,2]
[399668012,1766596237973,-500.0,6.223e-05,2]
[399668014,1766596237983,-500.0,6.223e-05,2]
[399668016,1766596237993,-500.0,6.223e-05,2]
[399668018,1766596238004,-500.0,6.223e-05,2]
[399668020,1766596238014,-560.0,6.223e-05,2]
[399668022,1766596238024,-500.0,6.223e-05,2]
[399668024,1766596238035,-500.0,6.223e-05,2]
[399668026,1766596238046,-500.0,6.223e-05,2]
[399668028,1766596238056,-500.0,6.223e-05,2]
[399668030,1766596238067,-500.0,6.223e-05,2]
[399668031,1766596238078,-500.0,6.223e-05,2]
[399668034,1766596238090,-500.0,6.223e-05,2]
[399668036,1766596238100,-500.0,6.223e-05,2]
[399668038,1766596238111,-500.0,6.223e-05,2]
[399668040,1766596238122,-500.0,6.223e-05,2]
[399668042,1766596238132,-500.0,6.223e-05,2]
[399668043,1766596238142,-500.0,6.223e-05,2]
[399668045,1766596238153,-500.0,6.223e-05,2]
[399668047,1766596238163,-500.0,6.223e-05,2]
[399668049,1766596238174,-500.0,6.223e-05,2]
[399668051,1766596238184,-500.0,6.223e-05,2]
[399668053,1766596238195,-500.0,6.223e-05,2]
[399668055,1766596238205,-500.0,6.223e-05,2]
[399668058,1766596238221,-500.0,6.223e-05,2]
[399668060,1766596238231,-500.0,6.223e-05,2]
[399668062,1766596238241,-500.0,6.223e-05,2]
[399668064,1766596238251,-500.0,6.223e-05,2]
[399668066,1766596238262,-500.0,6.223e-05,2]
[399668068,1766596238272,-500.0,6.223e-05,2]
[399668070,1766596238282,-500.0,6.223e-05,2]
[399668072,1766596238292,-500.0,6.223e-05,2]
[399668074,1766596238302,-499.2979409,6.223e-05,2]
[399668076,1766596238312,-500.0,6.223e-05,2]
[399668078,1766596238322,-500.0,6.223e-05,2]
[399668079,1766596238332,-500.0,6.223e-05,2]
[399668082,1766596238342,-500.0,6.223e-05,2]
[399668083,1766596238352,-500.0,6.223e-05,2]
[399668085,1766596238362,-500.0,6.223e-05,2]
[399668087,1766596238372,-500.0,6.223e-05,2]
[399668089,1766596238382,-500.0,6.223e-05,2]
[399668091,1766596238396,-500.0,6.223e-05,2]
[399668093,1766596238406,-500.0,6.223e-05,2]
[399668096,1766596238417,-500.0,6.223e-05,2]
[399668098,1766596238427,-500.0,6.223e-05,2]
[399668100,1766596238438,-500.0,6.223e-05,2]
[399668102,1766596238448,-500.0,6.223e-05,2]
[399668103,1766596238459,-500.0,6.223e-05,2]
[399668105,1766596238469,-500.0,6.223e-05,2]
[399668107,1766596238480,-500.0,6.223e-05,2]
[399668109,1766596238490,-500.0,6.223e-05,2]
[399668111,1766596238500,-500.0,6.223e-05,2]
[399668113,1766596238510,-500.0,6.223e-05,2]
[399668115,1766596238521,-500.0,6.223e-05,2]
[399668117,1766596238532,-500.0,6.223e-05,2]
[399668119,1766596238542,-500.0,6.223e-05,2]
[399668121,1766596238552,-500.0,6.223e-05,2]